fUSD/lending_fUSD_20260319
["ID","MTS","AMOUNT","RATE_DAILY","PERIOD"]
[408579041,1773902754858,-197.43371686,9.854e-05,2]
[408579042,1773902754888,-574.42695522,9.933e-05,2]
[408579043,1773902754918,-502.94227375,9.933e-05,2]
[408579044,1773902754948,-313.87862379,9.933e-05,2]
[408579045,1773902754979,-500.0,9.933e-05,2]
[408579046,1773902755010,-500.0,9.933e-05,2]
[408579047,1773902755039,-503.63793267,9.933e-05,2]
[408579048,1773902755073,-500.0,9.933e-05,2]
[408579049,1773902755103,-500.0,9.933e-05,2]
[408579051,1773902755261,-503.01696728,9.933e-05,2]
[408579052,1773902755291,-333.74740353,9.933e-05,2]
[408579053,1773902755321,-500.0,9.933e-05,2]
[408579054,1773902755351,-232.0,9.952e-05,2]
[408579055,1773902755379,-208.84160071,9.952e-05,2]
[408579056,1773902755409,-500.0,9.953e-05,2]
[408579057,1773902755440,-500.0,9.953e-05,2]
[408579058,1773902755471,-500.0,9.953e-05,2]
[408579059,1773902755501,-500.0,9.953e-05,2]
[408579060,1773902755536,-500.0,9.953e-05,2]
[408579061,1773902755566,-440.41297754,9.953e-05,2]
[408579062,1773902755598,-63.97210188,9.953e-05,2]
[408579064,1773902755692,-436.02789812,9.953e-05,2]
[408579065,1773902755723,-500.0,9.953e-05,2]
[408579066,1773902755753,-500.0,9.953e-05,2]
[408579067,1773902755787,-500.0,9.953e-05,2]
[408579068,1773902755824,-500.0,9.953e-05,2]
[408579069,1773902755858,-500.0,9.953e-05,2]
[408579070,1773902755894,-500.0,9.953e-05,2]
[408579071,1773902755931,-500.0,9.953e-05,2]
[408579072,1773902755969,-500.0,9.953e-05,2]
[408579073,1773902756007,-500.0,9.953e-05,2]
[408579075,1773902756635,-56.81443516,9.953e-05,2]
[408579076,1773902756654,-443.18556484,9.953e-05,2]
[408579077,1773902756663,-56.81443516,9.953e-05,2]
[408579078,1773902756678,-127.95420376,9.953e-05,2]
[408579079,1773902757185,-315.23136108,9.953e-05,2]
[408579080,1773902757221,-500.0,9.953e-05,2]
[408579081,1773902757255,-500.0,9.953e-05,2]
[408579082,1773902757290,-500.0,9.953e-05,2]
[408579083,1773902757325,-500.0,9.953e-05,2]
[408579084,1773902757363,-500.0,9.953e-05,2]
[408579085,1773902757398,-500.0,9.953e-05,2]
[408579086,1773902757432,-500.0,9.953e-05,2]
[408579087,1773902757468,-500.0,9.953e-05,2]
[408579088,1773902757502,-500.0,9.953e-05,2]
[408579089,1773902757622,-500.0,9.953e-05,2]
[408579090,1773902757658,-500.0,9.953e-05,2]
[408579091,1773902757693,-500.0,9.953e-05,2]
[408579092,1773902757727,-500.0,9.953e-05,2]
[408579093,1773902757762,-500.0,9.953e-05,2]
[408579094,1773902757796,-500.0,9.953e-05,2]
[408579095,1773902757832,-500.0,9.953e-05,2]
[408579096,1773902757866,-500.0,9.953e-05,2]
[408579097,1773902757899,-500.0,9.953e-05,2]
[408579098,1773902757933,-500.0,9.953e-05,2]
[408579099,1773902758066,-165.89713112,9.953e-05,2]
[408579100,1773902758102,-500.0,9.953e-05,2]
[408579101,1773902758138,-500.0,9.953e-05,2]
[408579102,1773902758173,-500.0,9.953e-05,2]
[408579103,1773902758208,-500.0,9.953e-05,2]
[408579104,1773902758242,-500.0,9.953e-05,2]
[408579105,1773902758275,-500.0,9.953e-05,2]
[408579106,1773902758307,-500.0,9.953e-05,2]
[408579107,1773902758337,-193.25588647,9.953e-05,2]
[408579108,1773902758375,-500.0,9.953e-05,2]
[408579109,1773902758410,-500.0,9.953e-05,2]
[408579110,1773902758514,-500.0,9.953e-05,2]
[408579111,1773902758552,-500.0,9.953e-05,2]
[408579112,1773902758588,-500.0,9.953e-05,2]
[408579113,1773902758624,-500.0,9.953e-05,2]
[408579114,1773902758660,-600.0,9.953e-05,2]
[408579115,1773902758689,-500.0,9.953e-05,2]
[408579116,1773902758717,-500.0,9.953e-05,2]
[408579117,1773902758747,-155.08858744,9.953e-05,2]
[408579118,1773902758775,-295.353,9.953e-05,2]
[408579119,1773902758804,-150.99,9.953e-05,2]
[408579120,1773902758832,-299.99,9.953e-05,2]
[408579121,1773902759621,-230.73396482,9.953e-05,2]
[408579122,1773902759640,-150.99,9.953e-05,2]
[408579123,1773902759660,-299.99,9.953e-05,2]
[408579124,1773902759679,-997.16682512,9.953e-05,2]
[408579133,1773902834122,500.0,9.7e-05,3]
[408579134,1773902836442,1000.0,9.8e-05,3]
[408579135,1773902838311,1500.0,9.9e-05,3]
[408579136,1773902847115,2000.0,0.0001,3]
[408579138,1773902864791,354.75,0.00016,120]
[408579139,1773903032242,-1200.0,9.846e-05,2]
[408579140,1773903032252,-231.0,9.846e-05,2]
[408579141,1773903032262,-300.0,9.847e-05,2]
[408579142,1773903032271,-300.0,9.847e-05,2]
[408579143,1773903032281,-1200.0,9.847e-05,2]
[408579144,1773903032291,-300.0,9.847e-05,2]
[408579145,1773903032301,-197.43371686,9.847e-05,2]
[408579146,1773903032310,-590.6875214,9.848e-05,2]
[408579147,1773903032322,-392.0164969,9.848e-05,2]
[408579148,1773903032333,-335.31456548,9.848e-05,2]
[408579149,1773903032344,-578.1981307,9.848e-05,2]
[408579150,1773903032356,-2171.79258427,9.848e-05,2]
[408579151,1773903032367,-3994.67917432,9.848e-05,2]
[408579152,1773903032378,-2673.03763375,9.848e-05,2]
[408579153,1773903032399,-376.67389318,9.848e-05,2]
[408579154,1773903032409,-4623.33293223,9.853e-05,2]
[408579155,1773903032421,-390.37271931,9.853e-05,2]
[408579156,1773903032432,-11102.41034846,9.853e-05,2]
[408579157,1773903032442,-6761.4828,9.853e-05,2]
[408579158,1773903032452,-2500.0,9.854e-05,2]
[408579159,1773903032461,-2477.14,9.924e-05,2]
[408579160,1773903032470,-150.0,9.932e-05,2]
[408579161,1773903032479,-500.0,9.933e-05,2]
[408579162,1773903032488,-500.82846399,9.933e-05,2]
[408579163,1773903032498,-500.0,9.933e-05,2]
[408579164,1773903032507,-520.9482015,9.933e-05,2]
[408579165,1773903032515,-500.0,9.933e-05,2]
[408579166,1773903032524,-8321.10921006,9.953e-05,2]
[408579167,1773903032533,-999.99,9.953e-05,2]
[408579168,1773903032543,-19999.99,9.953e-05,2]
[408579169,1773903032551,-85249.6,9.953e-05,2]
[408579170,1773903032560,-150.99,9.953e-05,2]
[408579171,1773903032569,-9999.99,9.953e-05,2]
[408579172,1773903032578,-9999.99,9.953e-05,2]
[408579173,1773903032587,-1547.13,9.953e-05,2]
[408579174,1773903032596,-184759.37741092,9.954e-05,2]
[408579175,1773903032616,-534.06656813,9.954e-05,2]
[408579192,1773903033371,232.79,9.248e-05,2]
[408579196,1773903039077,-232.79,9.762e-05,2]
[408579199,1773903039366,-286.93437378,9.854e-05,2]
[408579200,1773903039383,-2213.06562622,9.854e-05,2]
[408579202,1773903039392,-358.0871286,9.953e-05,2]
[408579204,1773903039404,-1504.2720896,9.953e-05,2]
[408579206,1773903039413,-11113.75017532,9.954e-05,2]
[408579209,1773903039428,-475.2949715,9.954e-05,2]
[408579210,1773903039439,-10872.26460037,9.954e-05,2]
[408579211,1773903039450,-1450283.88641422,9.954e-05,2]
[408579212,1773903039465,-448.48577943,9.954e-05,2]
[408579213,1773903040398,-845.39777926,9.954e-05,2]
[408579214,1773903040469,-840667.47630085,9.954e-05,2]
[408579215,1773903040479,-392008.48425858,9.955e-05,2]
[408579216,1773903040489,-32974.6857,9.955e-05,2]
[408579217,1773903040499,-1000.0,9.955e-05,2]
[408579218,1773903040508,-1058.675,9.955e-05,2]
[408579219,1773903040517,-150.0,9.983e-05,2]
[408579220,1773903040527,-288.554882,9.984e-05,2]
[408579221,1773903040536,-1000.0,9.999e-05,2]
[408579222,1773903040545,-77927.40917088,0.0001,2]
[408579223,1773903040555,-1194.75,0.0001,2]
[408579224,1773903040564,-204.81736348,0.0001,2]
[408579225,1773903040574,-500.0,0.0001,2]
[408579226,1773903040583,-500.0,0.0001,2]
[408579227,1773903040593,-500.0,0.0001,2]
[408579228,1773903040602,-500.0,0.0001,2]
[408579229,1773903040614,-500.0,0.0001,2]
[408579230,1773903040624,-500.0,0.0001,2]
[408579231,1773903040633,-500.0,0.0001,2]
[408579232,1773903040643,-500.0,0.0001,2]
[408579233,1773903040653,-434.959087,0.0001,2]
[408579234,1773903040662,-151.0,0.0001,2]
[408579235,1773903040671,-151.0,0.0001,2]
[408579236,1773903040684,-151.0,0.0001,2]
[408579237,1773903040693,-151.0,0.0001,2]
[408579238,1773903040703,-151.0,0.0001,2]
[408579239,1773903040713,-151.0,0.0001,2]
[408579240,1773903040722,-151.0,0.0001,2]
[408579241,1773903040732,-151.0,0.0001,2]
[408579242,1773903040741,-151.0,0.0001,2]
[408579243,1773903040749,-200.0,0.0001,2]
[408579244,1773903040759,-200.281449,0.0001,2]
[408579245,1773903040769,-500.0,0.0001,2]
[408579246,1773903040778,-430.02139164,0.0001,2]
[408579247,1773903040788,-430.02139164,0.0001,2]
[408579248,1773903040798,-430.02139164,0.0001,2]
[408579249,1773903040807,-1755.99998084,0.0001,2]
[408579250,1773903040816,-165.63388254,0.0001,2]
[408579251,1773903040826,-321.01,0.0001,2]
[408579252,1773903040835,-1228.32,0.00010003,2]
[408579253,1773903040844,-559.85,0.00010035,2]
[408579254,1773903040853,-174.47964956,0.00010054,2]
[408579255,1773903040864,-1500.0,0.00010054,2]
[408579256,1773903040875,-259.1342093,0.00010168,2]
[408579257,1773903040884,-379.0,0.00010189,2]
[408579258,1773903040894,-440.0,0.00010226,2]
[408579259,1773903040903,-589.39570522,0.0001025,2]
[408579260,1773903040912,-500.0,0.00010274,2]
[408579261,1773903040921,-1194.75,0.00010274,2]
[408579262,1773903040931,-232.79,0.00010276,2]
[408579263,1773903040940,-1397.0,0.00010287,2]
[408579264,1773903040950,-178.3325322,0.0001043,2]
[408579265,1773903040959,-384.0,0.00010453,2]
[408579266,1773903040969,-512.51857515,0.00010481,2]
[408579267,1773903040978,-1000.0,0.00010481,2]
[408579269,1773903040987,-1000.0,0.00010481,2]
[408579271,1773903040996,-500.0,0.00010548,2]
[408579273,1773903041006,-1194.75,0.00010548,2]
[408579274,1773903041015,-200.0,0.00010548,2]
[408579275,1773903041024,-232.79,0.00010789,2]
[408579276,1773903041033,-500.0,0.00010822,2]
[408579277,1773903041043,-1194.75,0.00010822,2]
[408579278,1773903041051,-193.0,0.00010831,2]
[408579279,1773903041061,-250.0,0.00010831,2]
[408579280,1773903041071,-160.0,0.00010831,2]
[408579281,1773903041083,-420.0,0.00010831,2]
[408579282,1773903041093,-1680.0,0.00010831,2]
[408579283,1773903041102,-250.0,0.00010832,2]
[408579284,1773903041112,-1600.0,0.00010841,2]
[408579285,1773903041123,-5757.7695272,0.000109,2]
[408579286,1773903041132,-5757.76952716,0.000109,2]
[408579287,1773903041142,-193.0,0.00010916,2]
[408579288,1773903041151,-255.0,0.00010925,2]
[408579289,1773903041160,-3751.33385549,0.00010948,2]
[408579290,1773903041169,-363.12922173,0.00010948,2]
[408579291,1773903041179,-500.0,0.00010958,2]
[408579292,1773903041188,-500.0,0.00010958,3]
[408579293,1773903041198,-500.0,0.00010958,4]
[408579294,1773903041208,-500.0,0.00010958,5]
[408579295,1773903041218,-500.0,0.00010958,6]
[408579296,1773903041227,-500.0,0.00010958,7]
[408579297,1773903041237,-500.0,0.00010958,8]
[408579298,1773903041246,-500.0,0.00010958,9]
[408579299,1773903041255,-300.0,0.00010958,2]
[408579300,1773903041264,-170.55,0.00010996,2]
[408579301,1773903041274,-375.44189071,0.00011028,2]
[408579302,1773903041283,-1500.0,0.00011028,2]
[408579303,1773903041292,-500.0,0.00011096,2]
[408579304,1773903041301,-1194.75,0.00011096,2]
[408579305,1773903041310,-200.0,0.00011096,2]
[408579306,1773903041319,-13142.52568288,0.00011099,2]
[408579307,1773903041329,-13142.52568287,0.00011099,2]
[408579308,1773903041338,-13142.52568287,0.00011099,2]
[408579309,1773903041347,-28035.86921729,0.00011099,2]
[408579310,1773903041357,-28035.86921723,0.00011099,2]
[408579311,1773903041367,-28035.86921723,0.00011099,2]
[408579312,1773903041377,-5533.0,0.000111,3]
[408579313,1773903041386,-600.0,0.00011229,2]
[408579314,1773903041395,-163.68,0.00011233,2]
[408579315,1773903041405,-5533.0,0.000113,5]
[408579316,1773903041414,-232.79,0.00011303,2]
[408579317,1773903041423,-320.0,0.00011326,2]
[408579318,1773903041432,-500.0,0.0001137,2]
[408579319,1773903041441,-1194.75,0.0001137,2]
[408579320,1773903041450,-187.952092,0.00011481,2]
[408579321,1773903041460,-13142.52568287,0.00011537,2]
[408579322,1773903041473,-28035.86921723,0.00011549,2]
[408579323,1773903041483,-2000.0,0.00011576,2]
[408579324,1773903041492,-5757.76952716,0.00011582,2]
[408579325,1773903041501,-1175.98,0.000116,2]
[408579326,1773903041512,-293.99,0.000116,2]
[408579327,1773903041522,-293.99,0.000116,2]
[408579328,1773903041532,-293.99,0.000116,2]
[408579329,1773903041541,-293.99,0.000116,2]
[408579330,1773903041551,-2418.47,0.000116,2]
[408579331,1773903041560,-831.06,0.000116,2]
[408579332,1773903041570,-240.6,0.000116,2]
[408579333,1773903041579,-500.0,0.00011644,2]
[408579334,1773903041588,-1194.75,0.00011644,2]
[408579335,1773903041598,-200.0,0.00011644,2]
[408579336,1773903041608,-232.79,0.00011817,2]
[408579337,1773903041621,-334.0,0.00011888,2]
[408579338,1773903041631,-587.0,0.00011914,2]
[408579339,1773903041641,-2351.0,0.00011914,2]
[408579340,1773903041651,-500.0,0.00011918,2]
[408579341,1773903041660,-1194.75,0.00011918,2]
[408579342,1773903041670,-1440.14047124,0.00011996,2]
[408579343,1773903041679,-500.0,0.00012,2]
[408579344,1773903041691,-433.0,0.00012017,2]
[408579345,1773903041701,-1600.0,0.00012046,2]
[408579346,1773903041710,-15848.55,0.00012055,2]
[408579347,1773903041720,-3807.71,0.00012087,2]
[408579348,1773903041731,-10379.68,0.00012087,2]
[408579349,1773903041740,-9999.99,0.00012087,2]
[408579350,1773903041750,-170.55,0.00012095,2]
[408579351,1773903041759,-13142.52568287,0.00012097,2]
[408579352,1773903041769,-28035.86921723,0.00012114,2]
[408579353,1773903041779,-2500.0,0.00012124,2]
[408579354,1773903041789,-10000.0,0.00012164,2]
[408579355,1773903041799,-473.0935161,0.00012192,2]
[408579356,1773903041808,-1194.75,0.00012192,2]
[408579357,1773903041818,-200.0,0.00012192,2]
[408579358,1773903041828,-174.0195981,0.00012307,2]
[408579359,1773903041838,-232.79,0.00012331,2]
[408579360,1773903041847,-325.461347,0.00012426,2]
[408579361,1773903041857,-160.0,0.00012426,2]
[408579362,1773903041867,-484.211746,0.00012426,2]
[408579363,1773903041876,-808.423492,0.00012426,2]
[408579364,1773903041886,-5757.76952716,0.00012446,2]
[408579365,1773903041895,-287.242386,0.00012464,2]
[408579366,1773903041905,-168.612467,0.00012464,2]
[408579367,1773903041915,-305.01333,0.00012464,2]
[408579368,1773903041925,-1194.75,0.00012466,2]
[408579369,1773903041936,-160.0,0.00012611,2]
[408579370,1773903041945,-495.800476,0.00012611,2]
[408579371,1773903041955,-831.600952,0.00012611,2]
[408579372,1773903041964,-13142.52568287,0.00012658,2]
[408579373,1773903041974,-3000.0,0.00012672,2]
[408579374,1773903041983,-28035.86921723,0.00012679,2]
[408579375,1773903041993,-241.270979,0.00012719,2]
[408579376,1773903042002,-1194.75,0.0001274,2]
[408579377,1773903042012,-200.0,0.0001274,2]
[408579378,1773903042022,-232.79,0.00012845,2]
[408579379,1773903042032,-204.81736347,0.00012878,2]
[408579380,1773903042042,-334.0,0.00012888,2]
[408579381,1773903042054,-1160.09809566,0.00012893,2]
[408579382,1773903042064,-160.0,0.00012936,2]
[408579383,1773903042073,-301.654971,0.00012936,2]
[408579384,1773903042083,-443.309942,0.00012936,2]
[408579385,1773903042093,-215.564507,0.00012985,2]
[408579386,1773903042102,-382.430342,0.00012985,2]
[408579387,1773903042112,-1000.0,0.00012999,2]
[408579388,1773903042122,-1194.80954918,0.00013014,2]
[408579389,1773903042132,-500.0,0.00013041,2]
[408579390,1773903042141,-3292.0,0.00013105,2]
[408579391,1773903042151,-823.0,0.00013106,2]
[408579392,1773903042161,-170.55,0.00013195,2]
[408579393,1773903042171,-611.54,0.000132,2]
[408579394,1773903042181,-736.0,0.00013219,2]
[408579395,1773903042190,-177.93691604,0.0001322,2]
[408579396,1773903042200,-28035.86921723,0.00013244,2]
[408579397,1773903042209,-1600.0,0.0001325,2]
[408579398,1773903042221,-8882.6885148,0.00013299,2]
[408579399,1773903042231,-500.0,0.00013299,2]
[408579400,1773903042240,-500.0,0.00013299,2]
[408579401,1773903042249,-500.0,0.00013299,2]
[408579402,1773903042259,-197.82587578,0.00013299,2]
[408579403,1773903042269,-500.0,0.00013299,2]
[408579404,1773903042279,-500.0,0.00013299,2]
[408579405,1773903042289,-500.0,0.00013299,2]
[408579406,1773903042299,-250.0,0.00013299,2]
[408579407,1773903042309,-500.0,0.00013299,2]
[408579408,1773903042318,-250.0,0.00013299,2]
[408579409,1773903042328,-500.0,0.00013299,2]
[408579410,1773903042338,-250.0,0.00013299,2]
[408579411,1773903042348,-266.07731429,0.00013299,2]
[408579412,1773903042357,-500.0,0.00013299,2]
[408579413,1773903042367,-250.0,0.00013299,2]
[408579414,1773903042377,-500.0,0.00013299,2]
[408579415,1773903042387,-250.0,0.00013299,2]
[408579416,1773903042398,-500.0,0.00013299,2]
[408579417,1773903042409,-250.0,0.00013299,2]
[408579418,1773903042419,-500.0,0.00013299,2]
[408579419,1773903042429,-250.0,0.00013299,2]
[408579420,1773903042438,-500.0,0.00013299,2]
[408579421,1773903042448,-250.0,0.00013299,2]
[408579422,1773903042457,-500.0,0.00013299,2]
[408579423,1773903042467,-250.0,0.00013299,2]
[408579424,1773903042476,-500.0,0.00013299,2]
[408579425,1773903042486,-500.0,0.00013299,2]
[408579426,1773903042496,-250.0,0.00013299,2]
[408579427,1773903042506,-250.0,0.00013299,2]
[408579428,1773903042515,-250.0,0.00013299,2]
[408579429,1773903042525,-250.0,0.00013299,2]
[408579430,1773903042534,-151.0,0.00013299,2]
[408579431,1773903042544,-151.0,0.00013299,2]
[408579432,1773903042553,-151.0,0.00013299,2]
[408579433,1773903042563,-151.0,0.00013299,2]
[408579434,1773903042572,-151.0,0.00013299,2]
[408579435,1773903042582,-669.13395939,0.00013299,2]
[408579436,1773903042592,-151.0,0.00013299,2]
[408579437,1773903042601,-151.0,0.00013299,2]
[408579438,1773903042613,-151.0,0.00013299,2]
[408579439,1773903042624,-225.91421318,0.00013299,2]
[408579440,1773903042634,-5757.76952716,0.00013309,2]
[408579441,1773903042644,-501.0,0.00013333,2]
[408579442,1773903042655,-9211.34798985,0.00013354,2]
[408579443,1773903042664,-562.34804496,0.00013354,2]
[408579444,1773903042674,-151.0,0.00013354,2]
[408579445,1773903042684,-232.79,0.00013358,2]
[408579446,1773903042694,-9552.16786547,0.00013409,2]
[408579447,1773903042703,-500.0,0.00013421,2]
[408579448,1773903042712,-500.0,0.00013421,2]
[408579449,1773903042722,-153.65437975,0.00013421,2]
[408579450,1773903042732,-500.0,0.00013421,2]
[408579451,1773903042741,-500.0,0.00013421,2]
[408579452,1773903042751,-500.0,0.00013421,2]
[408579453,1773903042760,-500.0,0.00013421,2]
[408579454,1773903042770,-500.0,0.00013421,2]
[408579455,1773903042779,-500.0,0.00013421,2]
[408579456,1773903042789,-484.98041623,0.00013421,2]
[408579457,1773903042799,-1136.0,0.00013421,2]
[408579458,1773903042808,-1136.0,0.00013421,2]
[408579459,1773903042818,-1136.0,0.00013421,2]
[408579460,1773903042829,-1136.0,0.00013421,2]
[408579461,1773903042839,-1136.0,0.00013421,2]
[408579462,1773903042848,-1136.0,0.00013421,2]
[408579463,1773903042857,-1136.0,0.00013421,2]
[408579464,1773903042869,-1136.0,0.00013421,2]
[408579465,1773903042879,-1136.0,0.00013421,2]
[408579466,1773903042888,-1136.0,0.00013421,2]
[408579467,1773903042898,-1136.0,0.00013421,2]
[408579468,1773903042907,-1136.0,0.00013421,2]
[408579469,1773903042917,-1136.0,0.00013421,2]
[408579470,1773903042926,-1136.0,0.00013421,2]
[408579471,1773903042937,-1136.0,0.00013421,2]
[408579472,1773903042959,-1136.0,0.00013421,2]
[408579473,1773903042969,-1136.0,0.00013421,2]
[408579474,1773903042979,-1136.0,0.00013421,2]
[408579475,1773903042989,-1136.0,0.00013421,2]
[408579476,1773903042999,-1136.0,0.00013421,2]
[408579477,1773903043009,-1136.0,0.00013421,2]
[408579478,1773903043019,-1136.0,0.00013421,2]
[408579479,1773903043029,-1136.0,0.00013421,2]
[408579480,1773903043039,-1139.93350754,0.00013421,2]
[408579481,1773903043049,-979.16666667,0.00013459,2]
[408579482,1773903043059,-160.0,0.00013459,2]
[408579483,1773903043069,-9905.5980765,0.00013464,2]
[408579484,1773903043079,-10272.10520533,0.00013519,2]
[408579486,1773903043090,-10652.17309792,0.00013574,2]
[408579487,1773903043100,-600.0,0.00013579,2]
[408579488,1773903043110,-1062.0,0.000136,7]
[408579489,1773903043121,-11046.30350255,0.00013629,2]
[408579490,1773903043130,-500.0,0.00013673,2]
[408579491,1773903043140,-11455.01673214,0.00013684,2]
[408579492,1773903043150,-500.0,0.00013695,2]
[408579493,1773903043160,-500.0,0.00013695,2]
[408579494,1773903043169,-150.0,0.00013695,2]
[408579495,1773903043179,-150.0,0.00013695,2]
[408579496,1773903043188,-500.0,0.00013695,2]
[408579497,1773903043197,-150.0,0.00013695,2]
[408579498,1773903043207,-399.25540835,0.00013695,2]
[408579500,1773903043217,-280.14759695,0.00013695,2]
[408579501,1773903043226,-150.0,0.00013695,2]
[408579503,1773903043236,-150.0,0.00013695,2]
[408579504,1773903043245,-150.0,0.00013695,2]
[408579505,1773903043255,-150.0,0.00013695,2]
[408579506,1773903043264,-150.0,0.00013695,2]
[408579508,1773903043273,-150.0,0.00013695,2]
[408579510,1773903043283,-156.12652739,0.00013695,2]
[408579511,1773903043292,-150.0,0.00013695,2]
[408579512,1773903043302,-150.0,0.00013695,2]
[408579513,1773903043312,-286.48877466,0.00013695,2]
[408579514,1773903043322,-150.0,0.00013695,2]
[408579515,1773903043332,-150.0,0.00013695,2]
[408579516,1773903043342,-150.0,0.00013695,2]
[408579517,1773903043353,-178.47147906,0.00013695,2]
[408579518,1773903043362,-202.13850988,0.00013695,2]
[408579519,1773903043372,-154.75024109,0.00013695,2]
[408579520,1773903043382,-500.0,0.00013695,2]
[408579521,1773903043392,-500.0,0.00013695,2]
[408579522,1773903043402,-500.0,0.00013695,2]
[408579523,1773903043412,-500.0,0.00013695,2]
[408579524,1773903043422,-500.0,0.00013695,2]
[408579525,1773903043432,-500.0,0.00013695,2]
[408579526,1773903043441,-500.0,0.00013695,2]
[408579527,1773903043451,-500.0,0.00013695,2]
[408579528,1773903043461,-500.0,0.00013695,2]
[408579529,1773903043471,-500.0,0.00013695,2]
[408579530,1773903043480,-542.50378378,0.00013695,2]
[408579531,1773903043490,-556.13980161,0.00013695,2]
[408579532,1773903043499,-150.0,0.00013695,2]
[408579533,1773903043509,-207.36459101,0.00013695,2]
[408579534,1773903043518,-500.0,0.00013695,2]
[408579535,1773903043527,-500.0,0.00013695,2]
[408579536,1773903043536,-500.0,0.00013695,2]
[408579537,1773903043545,-500.0,0.00013695,2]
[408579538,1773903043554,-608.69659724,0.00013695,2]
[408579539,1773903043564,-500.0,0.00013695,2]
[408579540,1773903043573,-500.0,0.00013695,2]
[408579541,1773903043583,-500.0,0.00013695,2]
[408579542,1773903043592,-461.65354003,0.00013695,2]
[408579543,1773903043602,-500.0,0.00013695,2]
[408579544,1773903043613,-500.0,0.00013695,2]
[408579545,1773903043624,-190.77647721,0.00013695,2]
[408579546,1773903043633,-150.0,0.00013695,2]
[408579547,1773903043642,-150.0,0.00013695,2]
[408579548,1773903043651,-150.0,0.00013695,2]
[408579549,1773903043662,-150.0,0.00013695,2]
[408579550,1773903043672,-239.07414574,0.00013695,2]
[408579551,1773903043683,-150.0,0.00013695,2]
[408579552,1773903043692,-150.94227271,0.00013695,2]
[408579553,1773903043702,-500.0,0.00013695,2]
[408579554,1773903043711,-500.0,0.00013695,2]
[408579555,1773903043720,-227.30575448,0.00013695,2]
[408579556,1773903043730,-150.0,0.00013695,2]
[408579557,1773903043739,-172.33361758,0.00013695,2]
[408579558,1773903043749,-500.0,0.00013695,2]
[408579559,1773903043758,-500.0,0.00013695,2]
[408579560,1773903043769,-481.94161916,0.00013695,2]
[408579561,1773903043778,-500.0,0.00013695,2]
[408579562,1773903043786,-500.0,0.00013695,2]
[408579563,1773903043795,-500.0,0.00013695,2]
[408579564,1773903043818,-500.0,0.00013695,2]
[408579565,1773903043828,-500.0,0.00013695,2]
[408579566,1773903043838,-500.0,0.00013695,2]
[408579567,1773903043847,-500.0,0.00013695,2]
[408579568,1773903043857,-500.0,0.00013695,2]
[408579569,1773903043866,-500.0,0.00013695,2]
[408579570,1773903043875,-500.0,0.00013695,2]
[408579571,1773903043884,-500.0,0.00013695,2]
[408579572,1773903043894,-500.0,0.00013695,2]
[408579573,1773903043903,-500.0,0.00013695,2]
[408579574,1773903043913,-500.0,0.00013695,2]
[408579576,1773903043923,-500.0,0.00013695,2]
[408579578,1773903043932,-500.0,0.00013695,2]
[408579580,1773903043942,-500.0,0.00013695,2]
[408579582,1773903043952,-500.0,0.00013695,2]
[408579584,1773903043961,-500.0,0.00013695,2]
[408579586,1773903043970,-500.0,0.00013695,2]
[408579587,1773903043980,-500.0,0.00013695,2]
[408579588,1773903043990,-500.0,0.00013695,2]
[408579589,1773903043999,-500.0,0.00013695,2]
[408579590,1773903044009,-206.79155437,0.00013695,2]
[408579591,1773903044019,-500.0,0.00013695,2]
[408579592,1773903044028,-500.0,0.00013695,2]